Workbook

Sheet Summary
A3: Paragon Mortgages (No.20) PLC
A5: Information as at the Principal Determination Date | B5: 2014-10-31 | C5: 2015-01-30 | D5: 2015-04-30 | E5: 2015-07-31 | F5: 2015-10-30 | G5: 2016-01-29 | H5: 2016-04-29 | I5: 2016-07-29 | J5: 2016-10-31 | K5: 2017-01-31 | L5: 2017-04-28 | M5: 2017-07-31 | N5: 2017-10-31 | O5: 2018-01-31 | P5: 2018-04-30 | Q5: 2018-07-31
A6: Mortgage Asset Balance | B6: 332395 | C6: 326187 | D6: 318261.1855 | E6: 310113.5659 | F6: 302507.5018 | G6: 294027.7676 | H6: 275777.5792 | I6: 205549.5233 | J6: 169325.6179 | K6: 147673.3937 | L6: 134569.7879 | M6: 117084.5431 | N6: 107326.995 | O6: 94204.98703 | P6: 86503.50744 | Q6: 0
A7: Discretionary Further Advance Prefunding Reserve | B7: 2973 | C7: 2942 | D7: 2724 | E7: 2449 | F7: 1563 | G7: 1406 | H7: 0 | I7: 0 | J7: 0 | K7: 0 | L7: 0 | M7: 0 | N7: 0 | O7: 0 | P7: 0 | Q7: 0
A8: Total Assets | B8: =+B6+B7 -> 335368 | C8: 329129 | D8: 320985.1855 | E8: 312562.5659 | F8: 304070.5018 | G8: 295433.7676 | H8: =+H6+H7 -> 275777.5792 | I8: 205549.5233 | J8: =+J6+J7 -> 169325.6179 | K8: 147673.3937 | L8: =+L6+L7 -> 134569.7879 | M8: 117084.5431 | N8: =+N6+N7 -> 107326.995 | O8: 94204.98703 | P8: =+P6+P7 -> 86503.50744 | Q8: 0
A9: Total Notes | B9: =SUM(B10:B12) -> 335368 | C9: =SUM(C10:C12) -> 329129 | D9: =SUM(D10:D12)+1 -> 320985 | E9: =SUM(E10:E12)+1 -> 312563 | F9: =SUM(F10:F12)+1 -> 304071 | G9: =SUM(G10:G12) -> 295434 | H9: 275778 | I9: 205550 | J9: 169326 | K9: 147673 | L9: 134570 | M9: =SUM(M10:M12) -> 117085 | N9: 107327 | O9: =SUM(O10:O12) -> 94205 | P9: 86504 | Q9: =SUM(Q10:Q12) -> 0
A10: Class A Notes | B10: 304368 | C10: 298129 | D10: 289984 | E10: 281562 | F10: 273070 | G10: 264434 | H10: 244778 | I10: 174550 | J10: 138326 | K10: 116673 | L10: 103570 | M10: 86085 | N10: 76327 | O10: 63205 | P10: 55504 | Q10: 0
A11: Class B Notes | B11: 24000 | C11: 24000 | D11: 24000 | E11: 24000 | F11: 24000 | G11: 24000 | H11: 24000 | I11: 24000 | J11: 24000 | K11: 24000 | L11: 24000 | M11: 24000 | N11: 24000 | O11: 24000 | P11: 24000 | Q11: 0
A12: Class D Notes | B12: 7000 | C12: 7000 | D12: 7000 | E12: 7000 | F12: 7000 | G12: 7000 | H12: 7000 | I12: 7000 | J12: 7000 | K12: 7000 | L12: 7000 | M12: 7000 | N12: 7000 | O12: 7000 | P12: 7000 | Q12: 0
A13: Class B and D Notes as a % of the Total Notes | B13: =SUM(B11:B12)/B9 -> 0.09243577205 | C13: 0.09418799316 | D13: 0.0965777217 | E13: 0.09918000531 | F13: 0.1019498735 | G13: 0.1049303736 | H13: =SUM(H11:H12)/H9 -> 0.1124092567 | I13: 0.1508148869 | J13: =SUM(J11:J12)/J9 -> 0.1830787948 | K13: 0.2099232764 | L13: =SUM(L11:L12)/L9 -> 0.2303633797 | M13: 0.2647649144 | N13: =SUM(N11:N12)/N9 -> 0.2888369189 | O13: 0.3290695823 | P13: =SUM(P11:P12)/P9 -> 0.3583649311 | Q13: 0
A14: Lifetime Redemption Rate | B14: 0.1392 | C14: 0.11 | D14: 0.1061 | E14: 0.1051 | F14: 0.1038 | G14: 0.1047 | H14: 0.1237 | I14: 0.2292 | J14: 0.2717 | K14: 0.288 | L14: 0.29 | M14: 0.3024 | N14: 0.3019 | O14: 0.3099 | P14: 0.3085 | Q14: 1
A15: Quarterly Redemption Rate | B15: 0.0469 | C15: 0.0192 | D15: 0.0253 | E15: 0.0265 | F15: 0.0256 | G15: 0.0286 | H15: 0.0639 | I15: 0.2554 | J15: 0.1773 | K15: 0.1279 | L15: 0.0887 | M15: 0.1299 | N15: 0.0841 | O15: 0.1223 | P15: 0.0817 | Q15: 1
A16: Further Advances released in the quarter | B16: 27 | C16: 31 | D16: 218 | E16: 275 | F16: 330 | G16: 157 | H16: 511 | I16: 214 | J16: 184 | K16: 0 | L16: 0 | M16: 0 | N16: 0 | O16: 0 | P16: 0 | Q16: 0
A17: First Loss Fund Balance | B17: 10500 | C17: 10500 | D17: 10500 | E17: 10500 | F17: 10500 | G17: 10500 | H17: 10500 | I17: 10500 | J17: 10500 | K17: 10500 | L17: 10500 | M17: 10500 | N17: 10500 | O17: 10500 | P17: 10500 | Q17: 0
A18: Liquidity Amount of the First Loss Fund (3% of the Class A and B Notes) | B18: =SUM(B10:B11)*3% -> 9851.04 | C18: 9663.87 | D18: 9419.52 | E18: 9166.86 | F18: 8912.1 | G18: 8653.02 | H18: =SUM(H10:H11)*3% -> 8063.34 | I18: 5956.5 | J18: =SUM(J10:J11)*3% -> 4869.78 | K18: 4220.19 | L18: =SUM(L10:L11)*3% -> 3827.1 | M18: 3302.55 | N18: =SUM(N10:N11)*3% -> 3009.81 | O18: 2616.15 | P18: =SUM(P10:P11)*3% -> 2385.12 | Q18: 0
A19: Liquidity Excess Amount (First Loss Fund - Liquidity Amount) | B19: =B17-B18 -> 648.96 | C19: 836.13 | D19: 1080.48 | E19: 1333.14 | F19: 1587.9 | G19: 1846.98 | H19: =H17-H18 -> 2436.66 | I19: 4543.5 | J19: =J17-J18 -> 5630.22 | K19: 6279.81 | L19: =L17-L18 -> 6672.9 | M19: 7197.45 | N19: =N17-N18 -> 7490.19 | O19: 7883.85 | P19: =P17-P18 -> 8114.88 | Q19: 0
A20: First Loss Fund as a % of the Assets | B20: =B17/B8 -> 0.03130889053 | C20: =+C17/C8 -> 0.03190238478 | D20: 0.03271179006 | E20: 0.03359327426 | F20: 0.03453146536 | G20: 0.03554096096 | H20: 0.03807416118 | I20: =+I17/I8 -> 0.05108258016 | J20: 0.06201069943 | K20: =+K17/K8 -> 0.07110285569 | L20: 0.07802642898 | M20: =+M17/M8 -> 0.08967878872 | N20: 0.09783186424 | O20: =+O17/O8 -> 0.1114590674 | P20: 0.1213823614 | Q20: 0
A21: Opening PDL Balance | B21: 0 | C21: 0 | D21: 0 | E21: 0 | F21: 0 | G21: 0 | H21: 0 | I21: 0 | J21: 0 | K21: 0 | L21: 0 | M21: 0 | N21: 0 | O21: 0 | P21: 0 | Q21: 0
A22: Quarterly Losses | B22: 0 | C22: 0 | D22: 0 | E22: 0 | F22: =+F104+F141+F169 -> 13 | G22: 0 | H22: 1 | I22: 1 | J22: 0 | K22: 0 | L22: 0 | M22: 461 | N22: =+N104+N141+N169 -> 0 | O22: 30 | P22: =+P104+P141+P169 -> -45 | Q22: 14
A23: Quarterly Loss Rate (annualised) | B23: =1-(1-B22/B8)^4 -> 0 | C23: 0 | D23: 0 | E23: 0 | F23: 0.0001710020046 | G23: 0 | H23: =1-(1-H22/H8)^4 -> 1.450436346e-05 | I23: 1.945988853e-05 | J23: =1-(1-J22/J8)^4 -> 0 | K23: 0 | L23: =1-(1-L22/L8)^4 -> 0 | M23: 0.01565653217 | N23: =1-(1-N22/N8)^4 -> 0 | O23: 0.001273209563 | P23: 0 | Q23: 0
A24: PDL Replenishment made during the quarter (-ve = recoveries) | B24: 0 | C24: 0 | D24: 0 | E24: 0 | F24: 13 | G24: 0 | H24: 1 | I24: 1 | J24: 0 | K24: 0 | L24: 0 | M24: 461 | N24: 0 | O24: 30 | P24: -45 | Q24: 14
A25: Outstanding PDL at end of the quarter | B25: =+B21+B22-B24 -> 0 | C25: 0 | D25: 0 | E25: 0 | F25: 0 | G25: 0 | H25: =+H21+H22-H24 -> 0 | I25: =+I21+I22-I24 -> 0 | J25: 0 | K25: 0 | L25: 0 | M25: 0 | N25: 0 | O25: =+O21+O22-O24 -> 0 | P25: 0 | Q25: =+Q21+Q22-Q24 -> 0
A26: Spread Trap repayment in the quarter | B26: N/A | C26: N/A | D26: N/A | E26: N/A | F26: N/A | G26: N/A | H26: N/A | I26: N/A | J26: N/A | K26: N/A | L26: N/A | M26: N/A | N26: N/A | O26: N/A | P26: N/A | Q26: N/A
A27: Spread % (WA Funding Rate less WA Interest Rate) | B27: 0.0321 | C27: 0.0326 | D27: 0.0325 | E27: 0.0323 | F27: 0.0321 | G27: 0.0322 | H27: 0.0325 | I27: 0.0381 | J27: 0.0404 | K27: 0.0404 | L27: 0.0408 | M27: 0.0411 | N27: 0.0412 | O27: 0.0406 | P27: 0.0413 | Q27: 0
A28: Total Income as a % of the Assets | B28: 0.0128 | C28: 0.0117 | D28: 0.0116 | E28: 0.0117 | F28: 0.0116 | G28: 0.0116 | H28: 0.0116 | I28: 0.0116 | J28: 0.0127 | K28: 0.0128 | L28: 0.0128 | M28: 0.0145 | N28: 0.0125 | O28: 0.0137 | P28: 0.0136 | Q28: 0
A29: Quarterly surplus income to the Issuer | B29: 2392 | C29: 2371 | D29: 2325 | E29: 2221 | F29: 2153 | G29: 2086 | H29: 2057 | I29: 1955 | J29: 1789 | K29: 1417 | L29: 1313 | M29: 921 | N29: 995 | O29: 943 | P29: 888 | Q29: 11233
A30: Surplus Income as a % of the Assets | B30: =+B29/350000 -> 0.006834285714 | C30: =+C29/B8 -> 0.007069845662 | D30: 0.007064099487 | E30: 0.00691932245 | F30: 0.006888220902 | G30: 0.006860251119 | H30: 0.006962643495 | I30: 0.0070890462 | J30: 0.008703498657 | K30: 0.008368491533 | L30: 0.008891242812 | M30: 0.006844032485 | N30: 0.008498132836 | O30: 0.008786233141 | P30: 0.009426252558 | Q30: 0
A31: Losses as a % of the Assets | B31: =B22/350000 -> 0 | C31: =C22/B8 -> 0 | D31: 0 | E31: 0 | F31: 4.159167289e-05 | G31: 0 | H31: 3.384853425e-06 | I31: 3.626110588e-06 | J31: 0 | K31: 0 | L31: 0 | M31: 0.003425731787 | N31: 0 | O31: 0.0002795196121 | P31: 0 | Q31: 0
A32: Number of Properties in Possession | B32: =+B102+B139+B167 -> 0 | C32: 0 | D32: 0 | E32: 0 | F32: 0 | G32: 0 | H32: 0 | I32: 0 | J32: 0 | K32: 0 | L32: 0 | M32: 0 | N32: =+N102+N139+N167 -> 0 | O32: 0 | P32: =+P102+P139+P167 -> 0 | Q32: 0
A33: Appointment of a Receiver of Rent | B33: =+B103+B140+B168 -> 1 | C33: 2 | D33: 3 | E33: 3 | F33: 1 | G33: 1 | H33: 1 | I33: 1 | J33: 1 | K33: 2 | L33: 3 | M33: 1 | N33: =+N103+N140+N168 -> 3 | O33: 2 | P33: =+P103+P140+P168 -> 3 | Q33: 0
A34: Average Number of months (Possessions) in Arrears at the Sale Date | B34: 0 | C34: 0 | D34: 0 | E34: 0 | F34: 0 | G34: 0 | H34: 0 | I34: 0 | J34: 0 | K34: 0 | L34: 0 | M34: 0 | N34: 0 | O34: 0 | P34: 0 | Q34: 0
A35: Average Number of months (RoR) in Arrears at the Sale Date | B35: 0 | C35: 0 | D35: 0 | E35: 0 | F35: 6.25 | G35: 0 | H35: 0 | I35: 0 | J35: 0 | K35: 0 | L35: 0 | M35: 8.39 | N35: 0 | O35: 0 | P35: 0 | Q35: 8.74
A36: Arrears excluding Receiver of Rent and Possession Cases
A37: Performing Loans | B37: 1 | C37: 1 | D37: 0.9996574244 | E37: 0.9992241056 | F37: 0.9972123181 | G37: 0.9985355662 | H37: 0.9984400227 | I37: 0.9991553915 | J37: 0.9989771528 | K37: 0.9984384569 | L37: 0.9965258688 | M37: 0.9968635694 | N37: 0.9962285588 | O37: 1 | P37: 1 | Q37: 0
A38: >1 to 2 months arrears | B38: 0 | C38: 0 | D38: 0.0003425756268 | E38: 0.0007758944214 | F38: 0.002427613321 | G38: 0.001093954003 | H38: 0.001164912477 | I38: 0.0003140652228 | J38: 0.0003782932292 | K38: 0.0004302341541 | L38: 0.0004681088739 | M38: 0.002207732016 | N38: 0.003771441172 | O38: 0 | P38: 0 | Q38: 0
A39: >2 to 3 months arrears | B39: 0 | C39: 0 | D39: 0 | E39: 0 | F39: 0.0003600686048 | G39: 0.0003704798422 | H39: 0.0003950648647 | I39: 0.0005305432937 | J39: 0.000644554013 | K39: 0.001131308994 | L39: 0.003006022364 | M39: 0.0009286985824 | N39: 0 | O39: 0 | P39: 0 | Q39: 0
A40: >3 months arrears | B40: 0 | C40: 0 | D40: 0 | E40: 0 | F40: 0 | G40: 0 | H40: 0 | I40: 0 | J40: 0 | K40: 0 | L40: 0 | M40: 0 | N40: 0 | O40: 0 | P40: 0 | Q40: 0
A41: Total | B41: =SUM(B37:B40) -> 1 | C41: =SUM(C37:C40) -> 1 | D41: =SUM(D37:D40) -> 1 | E41: 1 | F41: 1 | G41: 1 | H41: 1 | I41: 1 | J41: 1 | K41: 1 | L41: 1 | M41: 1 | N41: 1 | O41: 1 | P41: 1 | Q41: 0
A42: Total Value of Arrears (£000's) | B42: 5.416208967 | C42: 9.472977882 | D42: 19.42609905 | E42: 30.94193105 | F42: 34.46615152 | G42: 44.13792224 | H42: 57.64727814 | I42: 64.50850187 | J42: 66.53649708 | K42: 74.4110896 | L42: 80.0607308 | M42: 8.62609939 | N42: 16.01554998 | O42: 6.136140049 | P42: 9.935729828 | Q42: 0
A43: Total Value of Arrears as a % of the Notes Issued (£350,000,000) | B43: =B42/350000 -> 1.547488276e-05 | C43: 2.706565109e-05 | D43: 5.550314015e-05 | E43: 8.840551729e-05 | F43: 9.847471864e-05 | G43: 0.0001261083493 | H43: =H42/350000 -> 0.000164706509 | I43: 0.0001843100054 | J43: =J42/350000 -> 0.0001901042774 | K43: 0.0002126031132 | L43: =L42/350000 -> 0.0002287449452 | M43: 2.464599826e-05 | N43: =N42/350000 -> 4.575871423e-05 | O43: 1.753182871e-05 | P43: =P42/350000 -> 2.838779951e-05 | Q43: 0
A45: Underlying Assets | B45: 2014-10-31 | C45: 2015-01-30 | D45: 2015-04-30 | E45: 2015-07-31 | F45: =+F5 -> 2015-10-30 | G45: 2016-01-29 | H45: 2016-04-29 | I45: 2016-07-29 | J45: 2016-10-31 | K45: 2017-01-31 | L45: =+L5 -> 2017-04-28 | M45: 2017-07-31 | N45: =+N5 -> 2017-10-31 | O45: 2018-01-31 | P45: =+P5 -> 2018-04-30 | Q45: 2018-07-31
A46: Weighted Average LTV | B46: 0.7052778284 | C46: 0.7050544397 | D46: 0.7064257135 | E46: 0.7054023976 | F46: 0.706717634 | G46: 0.7069547758 | H46: 0.7059321626 | I46: 0.7000984085 | J46: 0.6926272985 | K46: 0.689735775 | L46: 0.6889269227 | M46: 0.6888768568 | N46: 0.6872564559 | O46: 0.6856190363 | P46: 0.6821910859 | Q46: 0
A47: Weighted Average Nationwide Indexed LTV | B47: 0.6573945156 | C47: 0.6570428295 | D47: 0.6593671411 | E47: 0.6394549143 | F47: 0.6349012424 | G47: 0.63321504 | H47: 0.6301512324 | I47: 0.6082111248 | J47: 0.5963199595 | K47: 0.5929711795 | L47: 0.594841621 | M47: 0.5800659936 | N47: 0.5758604551 | O47: 0.5761233276 | P47: 0.5688038229 | Q47: 0
A48: Weighted Average Halifax Indexed LTV | B48: 0.6459909301 | C48: 0.6519104545 | D48: 0.6378968351 | E48: 0.6082704753 | F48: 0.6011163527 | G48: 0.6020768986 | H48: 0.5804059042 | I48: 0.5620956459 | J48: n/a | K48: n/a | L48: n/a | M48: n/a | N48: n/a | O48: n/a | P48: n/a | Q48: n/a
A49: % of Standard Variable Rate Mortgages | B49: 0.2890808844 | C49: 0.2868296141 | D49: 0.2849409247 | E49: 0.2730297659 | F49: 0.270178172 | G49: 0.2631203072 | H49: 0.2621936994 | I49: 0.3243767855 | J49: 0.3694951547 | K49: 0.4012716826 | L49: 0.407720972 | M49: 0.3997106433 | N49: 0.3955681401 | O49: 0.40182566 | P49: 0.4092490528 | Q49: 0
A50: % of Fixed Rate Mortgages (reverting to SVR) | B50: 0.0007532813886 | C50: 0.0007676182985 | D50: 0 | E50: 0 | F50: 0 | G50: 0 | H50: 0 | I50: 0 | J50: 0 | K50: 0 | L50: 0 | M50: 0 | N50: 0 | O50: 0 | P50: 0 | Q50: 0
A51: % of Fixed Rate Mortgages (reverting to Libor plus a variable margin) | B51: 0.3507026913 | C51: 0.356576522 | D51: 0.3632123552 | E51: 0.3698472403 | F51: 0.3769607632 | G51: 0.3827773261 | H51: 0.364067867 | I51: 0.137969148 | J51: 0.04575354978 | K51: 0.03623647095 | L51: 0.03970406621 | M51: 0.03927908808 | N51: 0.04277485512 | O51: 0.04779722223 | P51: 0.05196112034 | Q51: 0
A52: % of Libor Linked Mortgages (reverting to SVR) | B52: 0.01809149952 | C52: 0.01823379851 | D52: 0.01863159622 | E52: 0.01941047749 | F52: 0.01933591559 | G52: 0.0180549116 | H52: 0.01381276818 | I52: 0.01380426597 | J52: 0.008906088331 | K52: 0.002119153506 | L52: 0 | M52: 0 | N52: 0 | O52: 0 | P52: 0 | Q52: 0
A53: % of Libor Linked Mortgages (reverting to Libor plus a variable margin) | B53: 0.2795830876 | C53: 0.2746455721 | D53: 0.2692630849 | E53: 0.2707508863 | F53: 0.2654887098 | G53: 0.2639230448 | H53: 0.2520925357 | I53: 0.07701014868 | J53: 0.04836326428 | K53: 0.05341507163 | L53: 0.05860429738 | M53: 0.06250417705 | N53: 0.06523807009 | O53: 0.07008706469 | P53: 0.07451282128 | Q53: 0
A54: % of Libor Linked Mortgages plus a Variable Margin | B54: 0 | C54: 0 | D54: 0 | E54: 0.001478248778 | F54: 0.001515416964 | G54: 0.003736738911 | H54: 0.03595626678 | I54: 0.3504813215 | J54: 0.4101352451 | K54: 0.375401646 | L54: 0.3518223766 | M54: 0.3521749458 | N54: 0.3419309572 | O54: 0.3159454476 | P54: 0.2997720044 | Q54: 0
A55: % of Non Reversionary Libor Linked | B55: 0.05593408855 | C55: 0.05698805011 | D55: 0.05785210764 | E55: 0.0592307327 | F55: 0.06011895528 | G55: 0.06180882024 | H55: 0.06487060921 | I55: 0.08697033281 | J55: 0.1059658733 | K55: 0.118524361 | L55: 0.1278674793 | M55: 0.1299383923 | N55: 0.1366299745 | O55: 0.1461555152 | P55: 0.1447265476 | Q55: 0
A56: % of Capped | B56: 0 | C56: 0 | D56: 0 | E56: 0 | F56: 0 | G56: 0 | H56: 0 | I56: 0 | J56: 0 | K56: 0 | L56: 0 | M56: 0 | N56: 0 | O56: 0 | P56: 0 | Q56: 0
A57: % of Base Rate Tracker | B57: 0.005854467272 | C57: 0.005958824852 | D57: 0.006099931373 | E57: 0.006252648555 | F57: 0.006402067184 | G57: 0.006578851093 | H57: 0.007006253828 | I57: 0.009387997496 | J57: 0.01138082455 | K57: 0.01303161431 | L57: 0.01428080849 | M57: 0.01639275347 | N57: 0.01785800302 | O57: 0.01818909034 | P57: 0.01977845362 | Q57: 0
A58: Weighted Average Loan Size | B58: 143956.5645 | C58: 143442.176 | D58: 142718.0204 | E58: 142646.5345 | F58: 141822.5512 | G58: 141155.9134 | H58: 140059.7152 | I58: 141077.2294 | J58: 144846.5508 | K58: 147085.0535 | L58: 148860.3849 | M58: 145446.6374 | N58: 145429.5325 | O58: 141874.9805 | P58: 142041.8841 | Q58: 0
A59: Weighted Average Interest Rate | B59: 0.04537869246 | C59: 0.04535316632 | D59: 0.04533196072 | E59: 0.04517204423 | F59: 0.04512788318 | G59: 0.04510638418 | H59: 0.0456116993 | I59: 0.05129826449 | J59: 0.05161115385 | K59: 0.05192298794 | L59: 0.05197588917 | M59: 0.05191264682 | N59: 0.05181318272 | O59: 0.05383773358 | P59: 0.05482661922 | Q59: 0
A60: Weighted Average Maturity Date (years) | B60: 18.78474741 | C60: 18.55929474 | D60: 18.33613276 | E60: 18.10007882 | F60: 17.84813017 | G60: 17.61415017 | H60: 17.4362525 | I60: 17.01058206 | J60: 16.53507961 | K60: 16.14489818 | L60: 15.82887086 | M60: 15.54271332 | N60: 15.23627549 | O60: 15.03324186 | P60: 14.6862444 | Q60: 0
A61: Weighted Average Seasoning (months) | B61: 16.40251678 | C61: 19.37306714 | D61: 22.22430246 | E61: 24.8887212 | F61: 27.81777143 | G61: 30.5678897 | H61: 33.40003821 | I61: 38.7388917 | J61: 43.4058073 | K61: 47.55866132 | L61: 50.83179156 | M61: 53.83449151 | N61: 56.8827725 | O61: 60.28169866 | P61: 63.71922961 | Q61: 0
A62: % of Interest Only Mortgages (optional switching to repayment) | B62: 0.6194164186 | C62: 0.6207884665 | D62: 0.6220554686 | E62: 0.6320716773 | F62: 0.6337737087 | G62: 0.6401289806 | H62: 0.642661742 | I62: 0.577993318 | J62: 0.5417068592 | K62: 0.5170185416 | L62: 0.5101942524 | M62: 0.5177878622 | N62: 0.5190575079 | O62: 0.5065856535 | P62: 0.4952386661 | Q62: 0
A63: % of Interest Only Mortgages (mandatory switching to repayment) | B63: 0.2014921137 | C63: 0.200398022 | D63: 0.2010379249 | E63: 0.1981373354 | F63: 0.2004695793 | G63: 0.196730683 | H63: 0.1930001267 | I63: 0.2393554432 | J63: 0.2685668329 | K63: 0.2876058193 | L63: 0.2881846238 | M63: 0.2772444018 | N63: 0.2729650411 | O63: 0.2763436096 | P63: 0.276823314 | Q63: 0
A64: % of Interest Only Mortgages | B64: 0.08122910619 | C64: 0.08068548933 | D64: 0.07751438381 | E64: 0.07234861894 | F64: 0.06687137887 | G64: 0.06399154494 | H64: 0.06318118655 | I64: 0.07608609545 | J64: 0.0882226281 | K64: 0.09389201802 | L64: 0.09941387058 | M64: 0.1012553184 | N64: 0.1024437206 | O64: 0.102126955 | P64: 0.1111909275 | Q64: 0
A65: % of Repayment Mortgages | B65: 0.09786236146 | C65: 0.0981280222 | D65: 0.09939222269 | E65: 0.09744236837 | F65: 0.09888533308 | G65: 0.09914879146 | H65: 0.1011569448 | I65: 0.1065651434 | J65: 0.1015036798 | K65: 0.1014836211 | L65: 0.1022072531 | M65: 0.1037124176 | N65: 0.1055337305 | O65: 0.1149437819 | P65: 0.1167470924 | Q65: 0
A66: % of Mortgages in London | B66: 0.1883076334 | C66: 0.18592637 | D66: 0.1805745472 | E66: 0.1808070791 | F66: 0.1783351713 | G66: 0.1701372299 | H66: 0.1713489382 | I66: 0.1542309996 | J66: 0.1587668693 | K66: 0.154634646 | L66: 0.1568322118 | M66: 0.1526941068 | N66: 0.1455974018 | O66: 0.1395114511 | P66: 0.1408733557 | Q66: 0
A67: % of Mortgages in the South East | B67: 0.2915759362 | C67: 0.289635539 | D67: 0.2891959938 | E67: 0.2916111377 | F67: 0.2916657608 | G67: 0.2907392035 | H67: 0.2875719641 | I67: 0.2677635318 | J67: 0.2590831987 | K67: 0.2608549591 | L67: 0.2552056771 | M67: 0.2536636337 | N67: 0.2551814704 | O67: 0.243210843 | P67: 0.2437839939 | Q67: 0
A68: % of Owner Occupied Mortgages | B68: 0 | C68: 0 | D68: 0 | E68: 0 | F68: 0 | G68: 0 | H68: 0 | I68: 0 | J68: 0 | K68: 0 | L68: 0 | M68: 0 | N68: 0 | O68: 0 | P68: 0 | Q68: 0
A69: % of Investment Home Loans - Professional Landlords | B69: 0.587584662 | C69: 0.5914922723 | D69: 0.5960805643 | E69: 0.5953042187 | F69: 0.5973836964 | G69: 0.5993665226 | H69: 0.604358745 | I69: 0.6620409857 | J69: 0.6856130358 | K69: 0.7033345284 | L69: 0.7057504499 | M69: 0.7118759598 | N69: 0.7045507129 | O69: 0.7447428888 | P69: 0.7073356533 | Q69: 0
A70: % of Investment Home Loans - Emerging Professional Landlords | B70: 0.412415338 | C70: 0.4085077277 | D70: 0.4039194357 | E70: 0.4046957813 | F70: 0.4026163036 | G70: 0.4006334774 | H70: 0.395641255 | I70: 0.3379590143 | J70: 0.3143869642 | K70: 0.2966654716 | L70: 0.2942495501 | M70: 0.2881240402 | N70: 0.2954492871 | O70: 0.2552571112 | P70: 0.2926643467 | Q70: 0
A71: Weighted Average Interest Coverage Ratio (calculated at the origination date) | B71: 1.613111229 | C71: 1.615385688 | D71: 1.620798758 | E71: 1.622075365 | F71: 1.627625039 | G71: 1.631312052 | H71: 1.634566563 | I71: 1.653617602 | J71: 1.665455423 | K71: 1.675095333 | L71: 1.680598002 | M71: 1.687945755 | N71: 1.688582955 | O71: 1.708444378 | P71: 1.708667838 | Q71: 0
A72: % of Paragon Mortgages 2010 Limited Originated Assets | B72: 0.9888945952 | C72: 0.9887005816 | D72: 0.9888610687 | E72: 0.9885876895 | F72: 0.9883214101 | G72: 0.9880081467 | H72: 0.9872375689 | I72: 0.9829118601 | J72: 0.9793001931 | K72: 0.9765485859 | L72: 0.974322359 | M72: 0.9709554527 | N72: 0.9689593819 | O72: 0.9668389704 | P72: 0.9639683294 | Q72: 0
A73: % of Idem Assets | B73: 0.01110540476 | C73: 0.0112994184 | D73: 0.01113893133 | E73: 0.01141231052 | F73: 0.01167858988 | G73: 0.01199185328 | H73: 0.01276243112 | I73: 0.01708813995 | J73: 0.02069980687 | K73: 0.02345141412 | L73: 0.02567764105 | M73: 0.02904454731 | N73: 0.03104061808 | O73: 0.03316102956 | P73: 0.03603167065 | Q73: 0
A75: Underlying Assets - Paragon Mortgages 2010 Paragon Originated Assets | B75: 2014-10-31 | C75: 2015-01-30 | D75: 2015-04-30 | E75: 2015-07-31 | F75: =+F45 -> 2015-10-30 | G75: 2016-01-29 | H75: 2016-04-29 | I75: 2016-07-29 | J75: 2016-10-31 | K75: 2017-01-31 | L75: 2017-04-28 | M75: 2017-07-31 | N75: =+N45 -> 2017-10-31 | O75: 2018-01-31 | P75: =+P45 -> 2018-04-30 | Q75: 2018-07-31
A76: Weighted Average LTV | B76: 0.6886271612 | C76: 0.6880673674 | D76: 0.6876601767 | E76: 0.6859415731 | F76: 0.6863434332 | G76: 0.6859908226 | H76: 0.6832366639 | I76: 0.6835090096 | J76: 0.6808226805 | K76: 0.6791810557 | L76: 0.6782719159 | M76: 0.6783117985 | N76: 0.6784753735 | O76: 0.676749077 | P76: 0.673503166 | Q76: 0
A77: Weighted Average Nationwide Indexed LTV | B77: 0.627926817 | C77: 0.6279561611 | D77: 0.6297527567 | E77: 0.6105574818 | F77: 0.6050959427 | G77: 0.6043631688 | H77: 0.6012144861 | I77: 0.5856889115 | J77: 0.5800491025 | K77: 0.5788635833 | L77: 0.58427643 | M77: 0.5667075113 | N77: 0.564805973 | O77: 0.5659539464 | P77: 0.5590195394 | Q77: 0
A78: Weighted Average Halifax Indexed LTV | B78: 0.6183789861 | C78: 0.6223045483 | D78: 0.608622551 | E78: 0.5808292025 | F78: 0.5742985819 | G78: 0.5754236931 | H78: 0.5553174519 | I78: 0.5431287406 | J78: n/a | K78: n/a | L78: n/a | M78: n/a | N78: n/a | O78: n/a | P78: n/a | Q78: n/a
A79: % of Standard Variable Rate Mortgages | B79: 0.5189629447 | C79: 0.5161846417 | D79: 0.5119674657 | E79: 0.4993795173 | F79: 0.4995986516 | G79: 0.4932328727 | H79: 0.4918383513 | I79: 0.4988066474 | J79: 0.502096891 | K79: 0.515544889 | L79: 0.509121497 | M79: 0.5060121042 | N79: 0.4882998922 | O79: 0.4805686847 | P79: 0.4808989255 | Q79: 0
A80: % of Fixed Rate Mortgages (reverting to SVR) | B80: 0 | C80: 0 | D80: 0 | E80: 0 | F80: 0 | G80: 0 | H80: 0 | I80: 0 | J80: 0 | K80: 0 | L80: 0 | M80: 0 | N80: 0 | O80: 0 | P80: 0 | Q80: 0
A81: % of Fixed Rate Mortgages (reverting to Libor plus a variable margin) | B81: 0.1614402582 | C81: 0.1630361522 | D81: 0.1630721691 | E81: 0.1628650533 | F81: 0.1638733305 | G81: 0.1693810948 | H81: 0.1444834815 | I81: 0.08785317336 | J81: 0.05204888658 | K81: 0.04690167039 | L81: 0.0502036578 | M81: 0.05820822762 | N81: 0.06196908055 | O81: 0.06649657701 | P81: 0.0721530826 | Q81: 0
A82: % of Libor Linked Mortgages (reverting to SVR) | B82: 0.04518562664 | C82: 0.04512512243 | D82: 0.04561762385 | E82: 0.04764813017 | F82: 0.04690827962 | G82: 0.04386840768 | H82: 0.03329229641 | I82: 0.02689060862 | J82: 0.01537879774 | K82: 0.003413650956 | L82: 0 | M82: 0 | N82: 0 | O82: 0 | P82: 0 | Q82: 0
A83: % of Libor Linked Mortgages (reverting to Libor plus a variable margin) | B83: 0.147824099 | C83: 0.1478366242 | D83: 0.1500350614 | E83: 0.1537468615 | F83: 0.1528974945 | G83: 0.1527032598 | H83: 0.1541925564 | I83: 0.1029566508 | J83: 0.08228712216 | K83: 0.08604398395 | L83: 0.09223395309 | M83: 0.09939855835 | N83: 0.1014079592 | O83: 0.1047408973 | P83: 0.1111272871 | Q83: 0
A84: % of Libor Linked Mortgages plus a Variable Margin | B84: 0 | C84: 0 | D84: 0 | E84: 0.003628751032 | F84: 0.003676350487 | G84: 0.003788230982 | H84: 0.03371244714 | I84: 0.1290751718 | J84: 0.1813010078 | K84: 0.1739549342 | L84: 0.1651344001 | M84: 0.1498636745 | N84: 0.1564328916 | O84: 0.1521478871 | P84: 0.1442175357 | Q84: 0
A85: % of Non Reversionary Libor Linked | B85: 0.1265870714 | C85: 0.1278174594 | D85: 0.1293076799 | E85: 0.1327316867 | F85: 0.1330458933 | G85: 0.1370261341 | H85: 0.1424808673 | I85: 0.154417748 | J85: 0.1668872947 | K85: 0.1741408716 | L85: 0.183306492 | M85: 0.1865174353 | N85: 0.1918901765 | O85: 0.1960459539 | P85: 0.1916031691 | Q85: 0
A86: % of Capped | B86: 0 | C86: 0 | D86: 0 | E86: 0 | F86: 0 | G86: 0 | H86: 0 | I86: 0 | J86: 0 | K86: 0 | L86: 0 | M86: 0 | N86: 0 | O86: 0 | P86: 0 | Q86: 0
A87: % of Base Rate Tracker | B87: 0 | C87: 0 | D87: 0 | E87: 0 | F87: 0 | G87: 0 | H87: 0 | I87: 0 | J87: 0 | K87: 0 | L87: 0 | M87: 0 | N87: 0 | O87: 0 | P87: 0 | Q87: 0
A88: Weighted Average Loan Size | B88: 175342.7793 | C88: 175270.2647 | D88: 175421.5209 | E88: 176194.345 | F88: 176873.2958 | G88: 176403.7147 | H88: 176571.6273 | I88: 175280.123 | J88: 177643.0432 | K88: 177662.5365 | L88: 177762.9024 | M88: 170824.9299 | N88: 170063.8468 | O88: 167651.5723 | P88: 167636.2408 | Q88: 0
A89: Weighted Average Interest Rate | B89: 0.05126278799 | C89: 0.05123975281 | D89: 0.05121819402 | E89: 0.05113070864 | F89: 0.05113045546 | G89: 0.05119963269 | H89: 0.05176099181 | I89: 0.05263686968 | J89: 0.05218585286 | K89: 0.05254842098 | L89: 0.05268061747 | M89: 0.05266924275 | N89: 0.05254392634 | O89: 0.05454194805 | P89: 0.05541509209 | Q89: 0
A90: Weighted Average Maturity Date (years) | B90: 18.23782739 | C90: 17.99425971 | D90: 17.76771124 | E90: 17.50749121 | F90: 17.25083172 | G90: 17.00830488 | H90: 16.8044821 | I90: 16.58975032 | J90: 16.30377954 | K90: 15.97027504 | L90: 15.69273661 | M90: 15.50038592 | N90: 15.24254666 | O90: 14.99934231 | P90: 14.64409761 | Q90: 0
A91: Weighted Average Seasoning (months) | B91: 24.12947481 | C91: 27.06367665 | D91: 29.86603168 | E91: 32.51279452 | F91: 35.50455687 | G91: 38.15466724 | H91: 40.72303032 | I91: 43.72075784 | J91: 46.43913271 | K91: 49.52490462 | L91: 52.14122123 | M91: 55.00025505 | N91: 57.40915346 | O91: 60.09141565 | P91: 63.05504684 | Q91: 0
A92: % of Interest Only Mortgages (optional switching to repayment) | B92: 0.3929210997 | C92: 0.3956595404 | D92: 0.3989163961 | E92: 0.4088081136 | F92: 0.4090978388 | G92: 0.4175155314 | H92: 0.4275690402 | I92: 0.4234483278 | J92: 0.4331740937 | K92: 0.432207952 | L92: 0.4418261994 | M92: 0.4433043892 | N92: 0.4620226414 | O92: 0.4669922512 | P92: 0.4626948368 | Q92: 0
A93: % of Interest Only Mortgages (mandatory switching to repayment) | B93: 0.4987088709 | C93: 0.4919589255 | D93: 0.4881784127 | E93: 0.4822201797 | F93: 0.4821177702 | G93: 0.4736578421 | H93: 0.4605863173 | I93: 0.4638326076 | J93: 0.4611392058 | K93: 0.4620638127 | L93: 0.4522409898 | M93: 0.4408936354 | N93: 0.4243048224 | O93: 0.4129788822 | P93: 0.4128500755 | Q93: 0
A94: % of Interest Only Mortgages | B94: 0 | C94: 0 | D94: 0 | E94: 0 | F94: 0 | G94: 0 | H94: 0 | I94: 0 | J94: 0 | K94: 0 | L94: 0 | M94: 0 | N94: 0 | O94: 0 | P94: 0 | Q94: 0
A95: % of Repayment Mortgages | B95: 0.1083700294 | C95: 0.1123815341 | D95: 0.1129051912 | E95: 0.1089717066 | F95: 0.1087843911 | G95: 0.1088266265 | H95: 0.1118446426 | I95: 0.1127190646 | J95: 0.1056867005 | K95: 0.1057282352 | L95: 0.1059328108 | M95: 0.1158019754 | N95: 0.1136725363 | O95: 0.1200288666 | P95: 0.1244550877 | Q95: 0
A96: % of Mortgages in London | B96: 0.1604240385 | C96: 0.1595118324 | D96: 0.1572387633 | E96: 0.1592665251 | F96: 0.1611877996 | G96: 0.1525388258 | H96: 0.1551957945 | I96: 0.1442635384 | J96: 0.1487980917 | K96: 0.1450550292 | L96: 0.1510595359 | M96: 0.1390249516 | N96: 0.1274627209 | O96: 0.1272821897 | P96: 0.1275748663 | Q96: 0
A97: % of Mortgages in the South East | B97: 0.2644893402 | C97: 0.2607911311 | D97: 0.2596249873 | E97: 0.2611998788 | F97: 0.2610319427 | G97: 0.2585509804 | H97: 0.2542128621 | I97: 0.2444132756 | J97: 0.2450975199 | K97: 0.2502566209 | L97: 0.2413505085 | M97: 0.2408834977 | N97: 0.2480302167 | O97: 0.2299985101 | P97: 0.2330519328 | Q97: 0
A98: % of Owner Occupied Mortgages | B98: 0 | C98: 0 | D98: 0 | E98: 0 | F98: 0 | G98: 0 | H98: 0 | I98: 0 | J98: 0 | K98: 0 | L98: 0 | M98: 0 | N98: 0 | O98: 0 | P98: 0 | Q98: 0
A99: % of Investment Home Loans - Professional Landlords | B99: 0.7943507276 | C99: 0.7945891584 | D99: 0.7872713547 | E99: 0.7831353897 | F99: 0.7903551765 | G99: 0.7913705517 | H99: 0.7926660977 | I99: 0.8158335226 | J99: 0.8155521692 | K99: 0.8230536811 | L99: 0.820618108 | M99: 0.8239435805 | N99: 0.8157480208 | O99: 0.8072583713 | P99: 0.7985053328 | Q99: 0
A100: % of Investment Home Loans - Emerging Professional Landlords | B100: 0.2056492724 | C100: 0.2054108416 | D100: 0.2127286453 | E100: 0.2168646103 | F100: 0.2096448235 | G100: 0.2086294483 | H100: 0.2073339023 | I100: 0.1841664774 | J100: 0.1844478308 | K100: 0.1769463189 | L100: 0.179381892 | M100: 0.1760564195 | N100: 0.1842519792 | O100: 0.1927416287 | P100: 0.2014946672 | Q100: 0
A101: Weighted Average Interest Coverage Ratio (calculated at the origination date) | B101: 1.685626309 | C101: 1.68755632 | D101: 1.698320436 | E101: 1.705155436 | F101: 1.70664712 | G101: 1.715870274 | H101: 1.721335225 | I101: 1.714560563 | J101: 1.706998413 | K101: 1.713915124 | L101: 1.719757211 | M101: 1.737052419 | N101: 1.731177466 | O101: 1.748635991 | P101: 1.749376506 | Q101: 0
A102: Number of Properties in Possession | B102: 0 | C102: 0 | D102: 0 | E102: 0 | F102: 0 | G102: 0 | H102: 0 | I102: 0 | J102: 0 | K102: 0 | L102: 0 | M102: 0 | N102: 0 | O102: 0 | P102: 0 | Q102: 0
A103: Appointment of a Receiver of Rent | B103: 0 | C103: 1 | D103: 2 | E103: 2 | F103: 1 | G103: 1 | H103: 1 | I103: 1 | J103: 1 | K103: 1 | L103: 2 | M103: 0 | N103: 0 | O103: 0 | P103: 1 | Q103: 0
A104: PM2010 Paragon Quarterly Losses | B104: 0 | C104: 0 | D104: 0 | E104: 0 | F104: 13 | G104: 0 | H104: 1 | I104: 1 | J104: 0 | K104: 0 | L104: 0 | M104: 461 | N104: 0 | O104: 30 | P104: -45 | Q104: 14
A105: Arrears excluding Receiver of Rent and Possession Cases
A106: Performing Loans | B106: 1 | C106: 1 | D106: 1 | E106: 1 | F106: 0.9946193281 | G106: 1 | H106: 1 | I106: 1 | J106: 1 | K106: 0.999368087 | L106: 1 | M106: 1 | N106: 1 | O106: 1 | P106: 1 | Q106: 0
A107: >1 to 2 months arrears | B107: 0 | C107: 0 | D107: 0 | E107: 0 | F107: 0.005380671858 | G107: 0 | H107: 0 | I107: 0 | J107: 0 | K107: 0 | L107: 0 | M107: 0 | N107: 0 | O107: 0 | P107: 0 | Q107: 0
A108: >2 to 3 months arrears | B108: 0 | C108: 0 | D108: 0 | E108: 0 | F108: 0 | G108: 0 | H108: 0 | I108: 0 | J108: 0 | K108: 0.0006319129653 | L108: 0 | M108: 0 | N108: 0 | O108: 0 | P108: 0 | Q108: 0
A109: >3 months arrears | B109: 0 | C109: 0 | D109: 0 | E109: 0 | F109: 0 | G109: 0 | H109: 0 | I109: 0 | J109: 0 | K109: 0 | L109: 0 | M109: 0 | N109: 0 | O109: 0 | P109: 0 | Q109: 0
A110: Total | B110: =SUM(B106:B109) -> 1 | C110: =SUM(C106:C109) -> 1 | D110: =SUM(D106:D109) -> 1 | E110: 1 | F110: 1 | G110: 1 | H110: 1 | I110: 1 | J110: 1 | K110: 1 | L110: 1 | M110: 1 | N110: 1 | O110: 1 | P110: 1 | Q110: =SUM(Q106:Q109) -> 0
A112: Underlying Assets - Paragon Mortgages 2010 Mortgage Trust Originated Assets | B112: 2014-10-31 | C112: 2015-01-30 | D112: 2015-04-30 | E112: 2015-07-31 | F112: =+F75 -> 2015-10-30 | G112: 2016-01-29 | H112: 2016-04-29 | I112: 2016-07-29 | J112: 2016-10-31 | K112: 2017-01-31 | L112: 2017-04-28 | M112: 2017-07-31 | N112: =+N75 -> 2017-10-31 | O112: 2018-01-31 | P112: =+P75 -> 2018-04-30 | Q112: 2018-07-31
A113: Weighted Average LTV | B113: 0.7190677464 | C113: 0.7193239266 | D113: 0.7220880729 | E113: 0.721549686 | F113: 0.7239238372 | G113: 0.724637524 | H113: 0.7252849594 | I113: 0.7227887191 | J113: 0.7158317834 | K113: 0.7157246797 | L113: 0.7175923537 | M113: 0.7175584006 | N113: 0.7151657802 | O113: 0.7184385975 | P113: 0.7158417754 | Q113: 0
A114: Weighted Average Nationwide Indexed LTV | B114: 0.67908824 | C114: 0.6789171082 | D114: 0.6819467314 | E114: 0.6615410006 | F114: 0.6582531907 | G114: 0.656050116 | H114: 0.6535349343 | I114: 0.6366119168 | J114: 0.6248443055 | K114: 0.6236785812 | L114: 0.6222513572 | M114: 0.6117906357 | N114: 0.6057067439 | O114: 0.6089656814 | P114: 0.601564323 | Q114: 0
A115: Weighted Average Halifax Indexed LTV | B115: 0.6666822873 | C115: 0.6742551727 | D115: 0.6603843657 | E115: 0.6294135833 | F115: 0.6224083984 | G115: 0.6233631793 | H115: 0.6011764931 | I115: 0.5867420934 | J115: n/a | K115: n/a | L115: n/a | M115: n/a | N115: n/a | O115: n/a | P115: n/a | Q115: n/a
A116: % of Standard Variable Rate Mortgages | B116: 0.1381407379 | C116: 0.1338522538 | D116: 0.1306582976 | E116: 0.119743541 | F116: 0.1115059023 | G116: 0.1042965902 | H116: 0.1015700887 | I116: 0.1454861782 | J116: 0.1967174118 | K116: 0.2283209803 | L116: 0.2485183935 | M116: 0.2382655746 | N116: 0.2500752335 | O116: 0.2695892372 | P116: 0.2957833065 | Q116: 0
A117: % of Fixed Rate Mortgages (reverting to SVR) | B117: 0.001279974385 | C117: 0.001313001663 | D117: 0 | E117: 0 | F117: 0 | G117: 0 | H117: 0 | I117: 0 | J117: 0 | K117: 0 | L117: 0 | M117: 0 | N117: 0 | O117: 0 | P117: 0 | Q117: 0
A118: % of Fixed Rate Mortgages (reverting to Libor plus a variable margin) | B118: 0.4860810688 | C118: 0.4972356593 | D118: 0.5110145369 | E118: 0.5221818808 | F118: 0.5370651716 | G118: 0.5431026285 | H118: 0.5313634781 | I118: 0.1977792812 | J118: 0.03901009481 | K118: 0.02001480045 | L118: 0.02302888125 | M118: 0.007822632753 | N118: 0.008932422014 | O118: 0.01108942656 | P118: 0.01220374571 | Q118: 0
A119: % of Libor Linked Mortgages (reverting to SVR) | B119: 0 | C119: 0 | D119: 0 | E119: 0 | F119: 0 | G119: 0 | H119: 0 | I119: 0 | J119: 0 | K119: 0 | L119: 0 | M119: 0 | N119: 0 | O119: 0 | P119: 0 | Q119: 0
A120: % of Libor Linked Mortgages (reverting to Libor plus a variable margin) | B120: 0.3744982189 | C120: 0.3675990853 | D120: 0.3583271655 | E120: 0.3580745783 | F120: 0.3514289261 | G120: 0.3488230703 | H120: 0.3286818421 | I120: 0.05144669446 | J120: 0.001773126822 | K120: 0 | L120: 0 | M120: 0 | N120: 0 | O120: 0 | P120: 0 | Q120: 0
A121: % of Libor Linked Mortgages plus a Variable Margin | B121: 0 | C121: 0 | D121: 0 | E121: 0 | F121: 0 | G121: 0.003777710931 | H121: 0.0383845912 | I121: 0.6052878462 | J121: 0.7624993666 | K121: 0.7516642193 | L121: 0.7284527253 | M121: 0.7539117926 | N121: 0.7409923445 | O121: 0.7193213362 | P121: 0.6920129478 | Q121: 0
A122: % of Non Reversionary Libor Linked | B122: 0 | C122: 0 | D122: 0 | E122: 0 | F122: 0 | G122: 0 | H122: 0 | I122: 0 | J122: 0 | K122: 0 | L122: 0 | M122: 0 | N122: 0 | O122: 0 | P122: 0 | Q122: 0
A123: % of Capped | B123: 0 | C123: 0 | D123: 0 | E123: 0 | F123: 0 | G123: 0 | H123: 0 | I123: 0 | J123: 0 | K123: 0 | L123: 0 | M123: 0 | N123: 0 | O123: 0 | P123: 0 | Q123: 0
A124: % of Base Rate Tracker | B124: 0 | C124: 0 | D124: 0 | E124: 0 | F124: 0 | G124: 0 | H124: 0 | I124: 0 | J124: 0 | K124: 0 | L124: 0 | M124: 0 | N124: 0 | O124: 0 | P124: 0 | Q124: 0
A125: Weighted Average Loan Size | B125: 128781.5332 | C125: 127899.7585 | D125: 126613.2618 | E125: 126309.1158 | F125: 124663.0667 | G125: 123986.0142 | H125: 122261.4813 | I125: 116992.0366 | J125: 115437.224 | K125: 114458.3331 | L125: 115762.4294 | M125: 115775.5223 | N125: 114588.7767 | O125: 107038.4026 | P125: 107107.6043 | Q125: 0
A126: Weighted Average Interest Rate | B126: 0.04166090372 | C126: 0.04157645973 | D126: 0.04147644613 | E126: 0.04128490313 | F126: 0.04113016365 | G126: 0.04105938133 | H126: 0.04149085504 | I126: 0.05060027653 | J126: 0.0519895153 | K126: 0.05239497427 | L126: 0.05246579729 | M126: 0.05255654982 | N126: 0.05260747371 | O126: 0.05480358848 | P126: 0.05631412745 | Q126: 0
A127: Weighted Average Maturity Date (years) | B127: 19.25550042 | C127: 19.05133455 | D127: 18.84046021 | E127: 18.62243918 | F127: 18.38592586 | G127: 18.16038038 | H127: 18.01766488 | I127: 17.66572472 | J127: 17.13541264 | K127: 16.7816691 | L127: 16.46074238 | M127: 16.02663394 | N127: 15.64857584 | O127: 15.60651478 | P127: 15.31843778 | Q127: 0
A128: Weighted Average Seasoning (months) | B128: 9.765928607 | C128: 12.64 | D128: 15.43980376 | E128: 18.09806739 | F128: 20.82206625 | G128: 23.61014542 | H128: 26.43706596 | I128: 30.67639298 | J128: 35.38262601 | K128: 39.57044895 | L128: 43.16556755 | M128: 45.84932403 | N128: 49.28577197 | O128: 53.03590052 | P128: 56.84073266 | Q128: 0
A129: % of Interest Only Mortgages (optional switching to repayment) | B129: 0.7851960723 | C129: 0.7883869169 | D129: 0.7910085879 | E129: 0.8009666731 | F129: 0.8073755143 | G129: 0.8123890404 | H129: 0.8129135545 | I129: 0.7679834999 | J129: 0.7267864235 | K129: 0.6990910123 | L129: 0.6770132763 | M129: 0.698641895 | N129: 0.681212921 | O129: 0.6520135648 | P129: 0.6304079202 | Q129: 0
A130: % of Interest Only Mortgages (mandatory switching to repayment) | B130: 0.00308946779 | C130: 0.002755928599 | D130: 0.00284499063 | E130: 0.002915792815 | F130: 0.003015576512 | G130: 0.003100802576 | H130: 0.003329656512 | I130: 0.002656633136 | J130: 0.003784058655 | K130: 0.002142325202 | L130: 0.002467639113 | M130: 0 | N130: 0 | O130: 0 | P130: 0 | Q130: 0
A131: % of Interest Only Mortgages | B131: 0.1208003441 | C131: 0.1203453421 | D131: 0.1160415493 | E131: 0.1065411561 | F131: 0.09794901516 | G131: 0.09237905354 | H131: 0.0903850398 | I131: 0.1293281268 | J131: 0.1738797738 | K131: 0.2045176076 | L131: 0.2249121761 | M131: 0.2192732053 | N131: 0.2285007013 | O131: 0.2429288642 | P131: 0.2683019718 | Q131: 0
A132: % of Repayment Mortgages | B132: 0.09091411572 | C132: 0.08851181239 | D132: 0.09010487221 | E132: 0.08957637796 | F132: 0.09165989406 | G132: 0.09213110353 | H132: 0.09337174923 | I132: 0.1000317402 | J132: 0.09554974405 | K132: 0.09424905484 | L132: 0.09560690852 | M132: 0.0820848997 | N132: 0.09028637771 | O132: 0.105057571 | P132: 0.1012901079 | Q132: 0
A133: % of Mortgages in London | B133: 0.2011220351 | C133: 0.1978231816 | D133: 0.1901919049 | E133: 0.1889373668 | F133: 0.1833485145 | G133: 0.1750706386 | H133: 0.174890221 | I133: 0.1511480072 | J133: 0.1535175955 | K133: 0.1456018571 | L133: 0.1381672494 | M133: 0.1448849219 | N133: 0.1427409589 | O133: 0.1170877394 | P133: 0.1163001242 | Q133: 0
A134: % of Mortgages in the South East | B134: 0.3110835859 | C134: 0.3106443933 | D134: 0.3116248707 | E134: 0.3146371259 | F134: 0.3153566926 | G134: 0.3155256001 | H134: 0.3136232721 | I134: 0.2956287254 | J134: 0.2822077806 | K134: 0.2830243468 | L134: 0.284991319 | M134: 0.2810709274 | N134: 0.2735090379 | O134: 0.2750038673 | P134: 0.2707216955 | Q134: 0
A135: % of Owner Occupied Mortgages | B135: 0 | C135: 0 | D135: 0 | E135: 0 | F135: 0 | G135: 0 | H135: 0 | I135: 0 | J135: 0 | K135: 0 | L135: 0 | M135: 0 | N135: 0 | O135: 0 | P135: 0 | Q135: 0
A136: % of Investment Home Loans - Professional Landlords | B136: 0.4580038232 | C136: 0.4625518664 | D136: 0.4729853515 | E136: 0.475343371 | F136: 0.4714233729 | G136: 0.4747468757 | H136: 0.4813304573 | I136: 0.5180002408 | J136: 0.5330397544 | K136: 0.540792575 | L136: 0.5438802396 | M136: 0.566333546 | N136: 0.5520306243 | O136: 0.575787533 | P136: 0.5858691753 | Q136: 0
A137: % of Investment Home Loans - Emerging Professional Landlords | B137: 0.5419961768 | C137: 0.5374481336 | D137: 0.5270146485 | E137: 0.524656629 | F137: 0.5285766271 | G137: 0.5252531243 | H137: 0.5186695427 | I137: 0.4819997592 | J137: 0.4669602456 | K137: 0.459207425 | L137: 0.4561197604 | M137: 0.433666454 | N137: 0.4479693757 | O137: 0.424212467 | P137: 0.4141308247 | Q137: 0
A138: Weighted Average Interest Coverage Ratio (calculated at the origination date) | B138: 1.527547477 | C138: 1.529697409 | D138: 1.530002801 | E138: 1.526140002 | F138: 1.532834267 | G138: 1.530673532 | H138: 1.530983233 | I138: 1.548684128 | J138: 1.573475465 | K138: 1.57200069 | L138: 1.569835165 | M138: 1.556634698 | N138: 1.564233867 | O138: 1.581784139 | P138: 1.581891146 | Q138: 0
A139: Number of Properties in Possession | B139: 0 | C139: 0 | D139: 0 | E139: 0 | F139: 0 | G139: 0 | H139: 0 | I139: 0 | J139: 0 | K139: 0 | L139: 0 | M139: 0 | N139: 0 | O139: 0 | P139: 0 | Q139: 0
A140: Appointment of a Receiver of Rent | B140: 1 | C140: 1 | D140: 1 | E140: 1 | F140: 0 | G140: 0 | H140: 0 | I140: 0 | J140: 0 | K140: 1 | L140: 1 | M140: 1 | N140: 3 | O140: 2 | P140: 2 | Q140: 0
A141: PM2010 Mortgage Trust Quarterly Losses | B141: 0 | C141: 0 | D141: 0 | E141: 0 | F141: 0 | G141: 0 | H141: 0 | I141: 0 | J141: 0 | K141: 0 | L141: 0 | M141: 0 | N141: 0 | O141: 0 | P141: 0 | Q141: 0
A142: Arrears excluding Receiver of Rent and Possession Cases
A143: Performing Loans | B143: 1 | C143: 1 | D143: 0.9994113506 | E143: 0.9990358089 | F143: 0.9993765742 | G143: 0.999358955 | H143: 0.9993116428 | I143: 0.9988743083 | J143: 0.9983965857 | K143: 0.9979274139 | L143: 0.9911729605 | M143: 0.9942150046 | N143: 0.9883698052 | O143: 1 | P143: 1 | Q143: 0
A144: >1 to 2 months arrears | B144: 0 | C144: 0 | D144: 0.0005886493645 | E144: 0.000964191107 | F144: 0 | G144: 0 | H144: 0 | I144: 0 | J144: 0 | K144: 0 | L144: 0 | M144: 0.003066397855 | N144: 0.01163019482 | O144: 0 | P144: 0 | Q144: 0
A145: >2 to 3 months arrears | B145: 0 | C145: 0 | D145: 0 | E145: 0 | F145: 0.0006234257739 | G145: 0.0006410450001 | H145: 0.0006883571614 | I145: 0.001125691743 | J145: 0.001603414309 | K145: 0.002072586148 | L145: 0.008827039468 | M145: 0.002718597527 | N145: 0 | O145: 0 | P145: 0 | Q145: 0
A146: >3 months arrears | B146: 0 | C146: 0 | D146: 0 | E146: 0 | F146: 0 | G146: 0 | H146: 0 | I146: 0 | J146: 0 | K146: 0 | L146: 0 | M146: 0 | N146: 0 | O146: 0 | P146: 0 | Q146: 0
A147: Total | B147: =SUM(B143:B146) -> 1 | C147: =SUM(C143:C146) -> 1 | D147: =SUM(D143:D146) -> 1 | E147: 1 | F147: 1 | G147: 1 | H147: 1 | I147: 1 | J147: 1 | K147: 1 | L147: 1 | M147: 1 | N147: 1 | O147: 1 | P147: 1 | Q147: =SUM(Q143:Q146) -> 0
A149: Underlying Assets - Idem Assets | B149: 2014-10-31 | C149: 2015-01-30 | D149: 2015-04-30 | E149: 2015-07-31 | F149: =+F112 -> 2015-10-30 | G149: 2016-01-29 | H149: 2016-04-29 | I149: 2016-07-29 | J149: 2016-10-31 | K149: 2017-01-31 | L149: 2017-04-28 | M149: 2017-07-31 | N149: =+N112 -> 2017-10-31 | O149: 2018-01-31 | P149: =+P112 -> 2018-04-30 | Q149: 2018-07-31
A150: Weighted Average LTV | B150: 0.5748079201 | C150: 0.574220305 | D150: 0.5783596285 | E150: 0.5777078585 | F150: 0.5770480505 | G150: 0.5764591619 | H150: 0.5758448841 | I150: 0.57496031 | J150: 0.5742750224 | K150: 0.5748776547 | L150: 0.5742101097 | M150: 0.5797581086 | N150: 0.5764590494 | O150: 0.5699769655 | P150: 0.5698063788 | Q150: 0
A151: Weighted Average Nationwide Indexed LTV | B151: 0.5701660386 | C151: 0.5654256981 | D151: 0.5686489251 | E151: 0.5461509239 | F151: 0.5349365081 | G151: 0.5257708625 | H151: 0.5221907525 | I151: 0.5043845269 | J151: 0.5000709683 | K151: 0.5005819799 | L151: 0.49447702 | M151: 0.4955794427 | N151: 0.4918596827 | O151: 0.4864973109 | P151: 0.4840713968 | Q151: 0
A152: Weighted Average Halifax Indexed LTV | B152: 0.5449759862 | C152: 0.5545210917 | D152: 0.5395052806 | E152: 0.5110125873 | F152: 0.4973206644 | G152: 0.4936220903 | H152: 0.4645288656 | I152: 0.4546283466 | J152: n/a | K152: n/a | L152: n/a | M152: n/a | N152: n/a | O152: n/a | P152: n/a | Q152: n/a
A153: % of Non Reversionary Libor Linked | B153: 0.4728272045 | C153: 0.4726432243 | D153: 0.4523773249 | E153: 0.4521137025 | F153: 0.4518116273 | G153: 0.4513899614 | H153: 0.4510251409 | I153: 0.4506132601 | J153: 0.4501965829 | K153: 0.4443143496 | L153: 0.443842662 | M153: 0.4355996222 | N153: 0.4246891936 | O153: 0.4514919897 | P153: 0.4510814163 | Q153: 0
A154: % of Base Rate Tracker | B154: 0.5271727955 | C154: 0.5273567757 | D154: 0.5476226751 | E154: 0.5478862975 | F154: 0.5481883727 | G154: 0.5486100386 | H154: 0.5489748591 | I154: 0.5493867399 | J154: 0.5498034171 | K154: 0.5556856504 | L154: 0.556157338 | M154: 0.5644003778 | N154: 0.5753108064 | O154: 0.5485080103 | P154: 0.5489185837 | Q154: 0
A155: Weighted Average Loan Size | B155: 119077.0603 | C155: 118894.4881 | D155: 118169.6497 | E155: 117970.4103 | F155: 117762.035 | G155: 117531.2617 | H155: 117319.7453 | I155: 117081.9673 | J155: 116833.5863 | K155: 119418.9624 | L155: 119152.921 | M155: 121452.4125 | N155: 123388.7504 | O155: 120151.3215 | P155: 119879.4573 | Q155: 0
A156: Weighted Average Interest Rate | B156: 0.03025831808 | C156: 0.03025202012 | D156: 0.03040667801 | E156: 0.03044075189 | F156: 0.03047223646 | G156: 0.03051736351 | H156: 0.03050767653 | I156: 0.03026482654 | J156: 0.02821811347 | K156: 0.0282069145 | L156: 0.02807094859 | M156: 0.02794721508 | N156: 0.02833574358 | O156: 0.03095695321 | P156: 0.03176103241 | Q156: 0
A157: Weighted Average Maturity Date (years) | B157: 13.5559943 | C157: 13.30719249 | D157: 12.89870294 | E157: 12.64971061 | F157: 12.40043696 | G157: 12.15040646 | H157: 11.90046506 | I157: 11.65030557 | J157: 11.39999437 | K157: 11.10750231 | L157: 10.85702338 | M157: 10.75874833 | N157: 10.78100369 | O157: 10.57092832 | P157: 10.32182495 | Q157: 0
A158: Weighted Average Seasoning (months) | B158: 89.51868512 | C158: 92.54541919 | D158: 95.55499041 | E158: 98.5820898 | F158: 101.6093475 | G158: 104.6366871 | H158: 107.5982373 | I158: 110.6258545 | J158: 113.6536643 | K158: 116.6918481 | L158: 119.6214303 | M158: 122.6570095 | N158: 125.670932 | O158: 129.1680618 | P158: 132.0992145 | Q158: 0
A159: % of Interest Only Mortgages | B159: 0.9127582622 | C159: 0.9140437539 | D159: 0.9121376087 | E159: 0.9134999957 | F159: 0.894074382 | G159: 0.8956677016 | H159: 0.8971546495 | I159: 0.8987757158 | J159: 0.9004176108 | K159: 0.9011273872 | L159: 0.9028588475 | M159: 0.9032679804 | N159: 0.9031899228 | O159: 0.8989166053 | P159: 0.9008065535 | Q159: 0
A160: % of Repayment Mortgages | B160: 0.08724173782 | C160: 0.08595624606 | D160: 0.08786239131 | E160: 0.08650000429 | F160: 0.105925618 | G160: 0.1043322984 | H160: 0.1028453505 | I160: 0.1012242842 | J160: 0.09958238921 | K160: 0.09887261277 | L160: 0.09714115247 | M160: 0.09673201957 | N160: 0.09681007716 | O160: 0.1010833947 | P160: 0.09919344653 | Q160: 0
A161: % of Mortgages in London | B161: 0.5145129264 | C161: 0.5149839267 | D161: 0.5350801793 | E161: 0.5356471493 | F161: 0.5362554975 | G161: 0.5369834185 | H161: 0.5376591225 | I161: 0.5383830898 | J161: 0.5391447669 | K161: 0.5452473988 | L161: 0.54604604 | M161: 0.5406243871 | N161: 0.5514082222 | O161: 0.58758354 | P161: 0.5884768562 | Q161: 0
A162: % of Mortgages in the South East | B162: 0.234349344 | C162: 0.2341318826 | D162: 0.2047406707 | E162: 0.2044761671 | F162: 0.2042220313 | G162: 0.2040028925 | H162: 0.2037464191 | I162: 0.2035300073 | J162: 0.2032948123 | K162: 0.205093992 | L162: 0.204889801 | M162: 0.2075121163 | N162: 0.2111244423 | O162: 0.2244076889 | P162: 0.2241111407 | Q162: 0
A163: % of Owner Occupied Mortgages | B163: 0 | C163: 0 | D163: 0 | E163: 0 | F163: 0 | G163: 0 | H163: 0 | I163: 0 | J163: 0 | K163: 0 | L163: 0 | M163: 0 | N163: 0 | O163: 0 | P163: 0 | Q163: 0
A164: % of Investment Home Loans - Professional Landlords | B164: 0 | C164: 0 | D164: 0 | E164: 0 | F164: 0 | G164: 0 | H164: 0 | I164: 0 | J164: 0 | K164: 0 | L164: 0 | M164: 0 | N164: 0 | O164: 0 | P164: 0 | Q164: 0
A165: % of Investment Home Loans - Emerging Professional Landlords | B165: 1 | C165: 1 | D165: 1 | E165: 1 | F165: 1 | G165: 1 | H165: 1 | I165: 1 | J165: 1 | K165: 1 | L165: 1 | M165: 1 | N165: 1 | O165: 1 | P165: 1 | Q165: 0
A166: Weighted Average Interest Coverage Ratio (calculated at the origination date) | B166: 0 | C166: 0 | D166: 0 | E166: 0 | F166: 0 | G166: 0 | H166: 0 | I166: 0 | J166: 0 | K166: 0 | L166: 0 | M166: 0 | N166: 0 | O166: 0 | P166: 0 | Q166: 0
A167: Number of Properties in Possession | B167: 0 | C167: 0 | D167: 0 | E167: 0 | F167: 0 | G167: 0 | H167: 0 | I167: 0 | J167: 0 | K167: 0 | L167: 0 | M167: 0 | N167: 0 | O167: 0 | P167: 0 | Q167: 0
A168: Appointment of a Receiver of Rent | B168: 0 | C168: 0 | D168: 0 | E168: 0 | F168: 0 | G168: 0 | H168: 0 | I168: 0 | J168: 0 | K168: 0 | L168: 0 | M168: 0 | N168: 0 | O168: 0 | P168: 0 | Q168: 0
A169: Idem Quarterly Losses | B169: 0 | C169: 0 | D169: 0 | E169: 0 | F169: 0 | G169: 0 | H169: 0 | I169: 0 | J169: 0 | K169: 0 | L169: 0 | M169: 0 | N169: 0 | O169: 0 | P169: 0 | Q169: 0
A170: Arrears excluding Receiver of Rent and Possession Cases
A171: Performing Loans | B171: 1 | C171: 1 | D171: 1 | E171: 0.9813180724 | F171: 0.981412391 | G171: 0.9090108608 | H171: 0.9089746717 | I171: 0.9816887714 | J171: 0.9818067612 | K171: 0.9817601196 | L171: 0.9818930337 | M171: 0.9600854073 | N171: 1 | O171: 1 | P171: 1 | Q171: 0
A172: >1 to 2 months arrears | B172: 0 | C172: 0 | D172: 0 | E172: 0.01868192762 | F172: 0.01858760904 | G172: 0.09098913924 | H172: 0.09102532829 | I172: 0.01831122858 | J172: 0.01819323878 | K172: 0.01823988035 | L172: 0.01810696634 | M172: 0.03991459265 | N172: 0 | O172: 0 | P172: 0 | Q172: 0
A173: >2 to 3 months arrears | B173: 0 | C173: 0 | D173: 0 | E173: 0 | F173: 0 | G173: 0 | H173: 0 | I173: 0 | J173: 0 | K173: 0 | L173: 0 | M173: 0 | N173: 0 | O173: 0 | P173: 0 | Q173: 0
A174: >3 months arrears | B174: 0 | C174: 0 | D174: 0 | E174: 0 | F174: 0 | G174: 0 | H174: 0 | I174: 0 | J174: 0 | K174: 0 | L174: 0 | M174: 0 | N174: 0 | O174: 0 | P174: 0 | Q174: 0
A175: Total | B175: =SUM(B171:B174) -> 1 | C175: =SUM(C171:C174) -> 1 | D175: =SUM(D171:D174) -> 1 | E175: 1 | F175: 1 | G175: 1 | H175: 1 | I175: 1 | J175: 1 | K175: 1 | L175: 1 | M175: 1 | N175: 1 | O175: 1 | P175: 1 | Q175: 0
A322: 0

Sheet Graphs
K2: PARAGON MORTGAGES (NO.20) PLC
